[Event "Early-Titled-Tuesday-Blitz-December-26-2023"]
[Site "Chess.com"]
[Date "2023.12.26"]
[Round "8"]
[White "NovakRatko"]
[Black "szefru"]
[Result "1/2-1/2"]
[WhiteElo "2429"]
[BlackElo "2270"]
[TimeControl "180+1"]
[EndTime "9:31:21 PST"]
[Termination "Game drawn - insufficient material"]

1. d4 {[%clk 0:03:00.1]} 1... Nf6 {[%clk 0:02:56.5]} 2. c4 {[%clk 0:02:55.2]}
2... g6 {[%clk 0:02:56.6]} 3. Nc3 {[%clk 0:02:55.2]} 3... Bg7 {[%clk 0:02:56.2]}
4. e4 {[%clk 0:02:55.5]} 4... d6 {[%clk 0:02:56.4]} 5. f3 {[%clk 0:02:56.1]}
5... O-O {[%clk 0:02:54.9]} 6. Be3 {[%clk 0:02:56.5]} 6... c5 {[%clk 0:02:53.7]}
7. dxc5 {[%clk 0:02:57.4]} 7... dxc5 {[%clk 0:02:53.7]} 8. Qxd8 {[%clk 0:02:58]}
8... Rxd8 {[%clk 0:02:53.1]} 9. Bxc5 {[%clk 0:02:58.6]} 9... Nc6 {[%clk
0:02:53.4]} 10. Nd5 {[%clk 0:02:58.8]} 10... Be6 {[%clk 0:02:42.2]} 11. Nxe7+
{[%clk 0:02:46.5]} 11... Nxe7 {[%clk 0:02:42.1]} 12. Bxe7 {[%clk 0:02:46.6]}
12... Rdc8 {[%clk 0:02:42.8]} 13. Rc1 {[%clk 0:02:39.8]} 13... b5 {[%clk
0:02:37.4]} 14. b3 {[%clk 0:02:31.7]} 14... Nd7 {[%clk 0:02:23.2]} 15. c5 {[%clk
0:02:17.4]} 15... b4 {[%clk 0:02:22.5]} 16. Ba6 {[%clk 0:02:13.2]} 16... Bc3+
{[%clk 0:02:20.8]} 17. Rxc3 {[%clk 0:02:11.1]} 17... bxc3 {[%clk 0:02:21.7]} 18.
Bxc8 {[%clk 0:02:10.3]} 18... Rxc8 {[%clk 0:02:22.6]} 19. Ne2 {[%clk 0:02:02.3]}
19... Nxc5 {[%clk 0:02:21]} 20. Nxc3 {[%clk 0:01:31.4]} 20... Nxb3 {[%clk
0:02:20.6]} 21. Bf6 {[%clk 0:01:14.2]} 21... Nc5 {[%clk 0:02:08.3]} 22. Kd2
{[%clk 0:01:06.4]} 22... Rb8 {[%clk 0:02:08.3]} 23. Rc1 {[%clk 0:00:59.8]} 23...
Bxa2 {[%clk 0:01:56.7]} 24. Nxa2 {[%clk 0:00:58.5]} 24... Nb3+ {[%clk
0:01:56.8]} 25. Kd3 {[%clk 0:00:46.5]} 25... Nxc1+ {[%clk 0:01:57.7]} 26. Nxc1
{[%clk 0:00:46.7]} 26... Rb6 {[%clk 0:01:44.1]} 27. Bd4 {[%clk 0:00:45.8]} 27...
Ra6 {[%clk 0:01:44.3]} 28. h4 {[%clk 0:00:40.4]} 28... Kf8 {[%clk 0:01:43]} 29.
g4 {[%clk 0:00:39.9]} 29... Ke7 {[%clk 0:01:43.1]} 30. h5 {[%clk 0:00:40]} 30...
Kd6 {[%clk 0:01:40.7]} 31. hxg6 {[%clk 0:00:39.4]} 31... hxg6 {[%clk 0:01:40.2]}
32. f4 {[%clk 0:00:35.3]} 32... Ra3+ {[%clk 0:01:39.4]} 33. Bc3 {[%clk
0:00:33.7]} 33... Kc5 {[%clk 0:01:38.1]} 34. e5 {[%clk 0:00:27.8]} 34... Kd5
{[%clk 0:01:35.9]} 35. Ne2 {[%clk 0:00:26.1]} 35... a5 {[%clk 0:01:31.8]} 36.
Nd4 {[%clk 0:00:26.3]} 36... Ra2 {[%clk 0:01:26.1]} 37. Nc2 {[%clk 0:00:23.7]}
37... Ra4 {[%clk 0:01:20.6]} 38. Ne3+ {[%clk 0:00:20.2]} 38... Ke6 {[%clk
0:01:17.3]} 39. Nc4 {[%clk 0:00:19.8]} 39... Ra2 {[%clk 0:00:53.4]} 40. Bxa5
{[%clk 0:00:19.8]} 40... Rg2 {[%clk 0:00:52.5]} 41. g5 {[%clk 0:00:19.3]} 41...
Rg1 {[%clk 0:00:40.9]} 42. Bd2 {[%clk 0:00:19.1]} 42... Kd5 {[%clk 0:00:35.8]}
43. Ne3+ {[%clk 0:00:19]} 43... Ke6 {[%clk 0:00:36.3]} 44. Ke4 {[%clk
0:00:18.3]} 44... Ra1 {[%clk 0:00:36]} 45. Bc3 {[%clk 0:00:17.8]} 45... Ra4+
{[%clk 0:00:35.8]} 46. Bd4 {[%clk 0:00:18.5]} 46... Rb4 {[%clk 0:00:33.3]} 47.
Ng4 {[%clk 0:00:17.7]} 47... Ra4 {[%clk 0:00:23.2]} 48. Nf6 {[%clk 0:00:18]}
48... Ra2 {[%clk 0:00:19.9]} 49. Ne8 {[%clk 0:00:17.3]} 49... Re2+ {[%clk
0:00:17]} 50. Be3 {[%clk 0:00:17.8]} 50... Ra2 {[%clk 0:00:16.7]} 51. Nc7+
{[%clk 0:00:18.2]} 51... Kd7 {[%clk 0:00:16.4]} 52. Nd5 {[%clk 0:00:18.4]} 52...
Ra4+ {[%clk 0:00:16.1]} 53. Bd4 {[%clk 0:00:18.7]} 53... Ke6 {[%clk 0:00:15.7]}
54. Nc7+ {[%clk 0:00:19]} 54... Kd7 {[%clk 0:00:15.7]} 55. Nb5 {[%clk
0:00:19.4]} 55... Ra2 {[%clk 0:00:13.7]} 56. Nc3 {[%clk 0:00:19.6]} 56... Ra5
{[%clk 0:00:12.7]} 57. Nd5 {[%clk 0:00:19.6]} 57... Ke6 {[%clk 0:00:12.1]} 58.
Nf6 {[%clk 0:00:20]} 58... Ra2 {[%clk 0:00:11.2]} 59. Ne8 {[%clk 0:00:20.4]}
59... Re2+ {[%clk 0:00:10.7]} 60. Be3 {[%clk 0:00:19.9]} 60... Ra2 {[%clk
0:00:10.9]} 61. Nc7+ {[%clk 0:00:17.6]} 61... Kd7 {[%clk 0:00:11]} 62. Nd5
{[%clk 0:00:16.9]} 62... Ke6 {[%clk 0:00:11.2]} 63. Nc3 {[%clk 0:00:14.7]} 63...
Ra3 {[%clk 0:00:09.7]} 64. Bd4 {[%clk 0:00:15.1]} 64... Rb3 {[%clk 0:00:08.8]}
65. Nd5 {[%clk 0:00:14.7]} 65... Ra3 {[%clk 0:00:08.3]} 66. Nb6 {[%clk
0:00:14.5]} 66... Ra6 {[%clk 0:00:06.7]} 67. Nc4 {[%clk 0:00:14.8]} 67... Ra4
{[%clk 0:00:06]} 68. Ne3 {[%clk 0:00:15.3]} 68... Ra2 {[%clk 0:00:06]} 69. f5+
{[%clk 0:00:15.1]} 69... gxf5+ {[%clk 0:00:06.9]} 70. Nxf5 {[%clk 0:00:15.6]}
70... Re2+ {[%clk 0:00:07.3]} 71. Ne3 {[%clk 0:00:16]} 71... Ra2 {[%clk
0:00:07]} 72. Kf4 {[%clk 0:00:16.2]} 72... Ra4 {[%clk 0:00:06.5]} 73. Ke4 {[%clk
0:00:16.6]} 73... Rb4 {[%clk 0:00:06.6]} 74. Nd5 {[%clk 0:00:16.2]} 74... Ra4
{[%clk 0:00:06.9]} 75. Nf4+ {[%clk 0:00:16.7]} 75... Ke7 {[%clk 0:00:06.4]} 76.
Kd5 {[%clk 0:00:17]} 76... Kd7 {[%clk 0:00:05.4]} 77. g6 {[%clk 0:00:16.8]}
77... fxg6 {[%clk 0:00:05.6]} 78. Nxg6 {[%clk 0:00:17.1]} 78... Ra5+ {[%clk
0:00:05.3]} 79. Bc5 {[%clk 0:00:17.2]} 79... Ra1 {[%clk 0:00:03.9]} 80. e6+
{[%clk 0:00:16.8]} 80... Ke8 {[%clk 0:00:04.3]} 81. Ne5 {[%clk 0:00:17.2]} 81...
Rd1+ {[%clk 0:00:04.3]} 82. Bd4 {[%clk 0:00:17.7]} 82... Ke7 {[%clk 0:00:04.4]}
83. Nc6+ {[%clk 0:00:17.4]} 83... Ke8 {[%clk 0:00:04.7]} 84. Kd6 {[%clk
0:00:17.9]} 84... Rd2 {[%clk 0:00:01.7]} 85. Kd5 {[%clk 0:00:17.9]} 85... Rd1
{[%clk 0:00:01.7]} 86. Ke5 {[%clk 0:00:16.7]} 86... Re1+ {[%clk 0:00:01.7]} 87.
Kd6 {[%clk 0:00:17]} 87... Rd1 {[%clk 0:00:01.9]} 88. e7 {[%clk 0:00:16.2]}
88... Rd2 {[%clk 0:00:01.6]} 89. Ke6 {[%clk 0:00:15.5]} 89... Re2+ {[%clk
0:00:01.9]} 90. Be5 {[%clk 0:00:15.6]} 90... Re1 {[%clk 0:00:01.7]} 91. Nd4
{[%clk 0:00:15.7]} 91... Rxe5+ {[%clk 0:00:01.8]} 92. Kxe5 {[%clk 0:00:15.9]}
92... Kxe7 {[%clk 0:00:02.3]} 1/2-1/2

[Event "Early-Titled-Tuesday-Blitz-December-26-2023"]
[Site "Chess.com"]
[Date "2023.12.26"]
[Round "8"]
[White "newyorkmouse"]
[Black "slidingknight2775"]
[Result "1/2-1/2"]
[WhiteElo "2497"]
[BlackElo "2687"]
[TimeControl "180+1"]
[EndTime "9:32:06 PST"]
[Termination "Game drawn - insufficient material"]

1. Nf3 {[%clk 0:02:59.8]} 1... d5 {[%clk 0:02:57.8]} 2. c4 {[%clk 0:02:59.5]}
2... e6 {[%clk 0:02:57.8]} 3. b3 {[%clk 0:02:59.6]} 3... Nf6 {[%clk 0:02:56.6]}
4. Bb2 {[%clk 0:02:59.7]} 4... c5 {[%clk 0:02:57.2]} 5. e3 {[%clk 0:02:59.1]}
5... Nc6 {[%clk 0:02:57.8]} 6. cxd5 {[%clk 0:02:58.2]} 6... exd5 {[%clk
0:02:58.7]} 7. d4 {[%clk 0:02:58.6]} 7... cxd4 {[%clk 0:02:58.5]} 8. Nxd4 {[%clk
0:02:58.7]} 8... Bb4+ {[%clk 0:02:59.2]} 9. Bc3 {[%clk 0:02:53.3]} 9... Qb6
{[%clk 0:02:59.5]} 10. Nxc6 {[%clk 0:02:44.1]} 10... bxc6 {[%clk 0:03:00.4]} 11.
Bd3 {[%clk 0:02:41]} 11... O-O {[%clk 0:02:58.4]} 12. O-O {[%clk 0:02:40.1]}
12... c5 {[%clk 0:02:49.2]} 13. Qd2 {[%clk 0:02:32.8]} 13... a5 {[%clk 0:02:13]}
14. Rc1 {[%clk 0:02:23.3]} 14... Ba6 {[%clk 0:02:05.3]} 15. Bxa6 {[%clk
0:02:11.9]} 15... Qxa6 {[%clk 0:01:58.2]} 16. Qb2 {[%clk 0:02:11.5]} 16... a4
{[%clk 0:01:33.7]} 17. bxa4 {[%clk 0:01:48.3]} 17... Bxc3 {[%clk 0:01:26]} 18.
Nxc3 {[%clk 0:01:46.1]} 18... Rfb8 {[%clk 0:01:21.4]} 19. Qd2 {[%clk 0:01:45.6]}
19... Rd8 {[%clk 0:01:16.8]} 20. Rab1 {[%clk 0:01:31.9]} 20... d4 {[%clk
0:01:12]} 21. Nb5 {[%clk 0:01:27.6]} 21... Qxa4 {[%clk 0:01:07.9]} 22. exd4
{[%clk 0:01:17.2]} 22... cxd4 {[%clk 0:01:02.5]} 23. Rb2 {[%clk 0:01:02.2]}
23... h6 {[%clk 0:00:54.1]} 24. Rb4 {[%clk 0:01:00.6]} 24... Qa5 {[%clk
0:00:47.1]} 25. Nxd4 {[%clk 0:00:49.1]} 25... Qxa2 {[%clk 0:00:34.5]} 26. Qxa2
{[%clk 0:00:48.8]} 26... Rxa2 {[%clk 0:00:35.4]} 27. Nf3 {[%clk 0:00:48.1]}
27... Re8 {[%clk 0:00:33.1]} 28. Nd4 {[%clk 0:00:34.7]} 28... Nd5 {[%clk
0:00:28.9]} 29. Rbc4 {[%clk 0:00:33.7]} 29... Nf4 {[%clk 0:00:24.5]} 30. Kf1
{[%clk 0:00:24.4]} 30... Nd3 {[%clk 0:00:20.2]} 31. Rd1 {[%clk 0:00:16.9]} 31...
Nxf2 {[%clk 0:00:18.8]} 32. Rdc1 {[%clk 0:00:14.2]} 32... Ng4 {[%clk 0:00:18.2]}
33. Nc2 {[%clk 0:00:06.4]} 33... Rxc2 {[%clk 0:00:13.3]} 34. R4xc2 {[%clk
0:00:04.5]} 34... Ne3+ {[%clk 0:00:13.9]} 35. Kf2 {[%clk 0:00:05.1]} 35... Nxc2
{[%clk 0:00:14.8]} 36. Rxc2 {[%clk 0:00:05.8]} 36... g6 {[%clk 0:00:15.5]} 37.
h3 {[%clk 0:00:06.1]} 37... h5 {[%clk 0:00:15.7]} 38. Kg3 {[%clk 0:00:06.6]}
38... Kg7 {[%clk 0:00:16.3]} 39. Rb2 {[%clk 0:00:06.7]} 39... Re6 {[%clk
0:00:16.8]} 40. Rb3 {[%clk 0:00:07.2]} 40... Ra6 {[%clk 0:00:17]} 41. Rc3 {[%clk
0:00:07.5]} 41... Ra4 {[%clk 0:00:17.5]} 42. Rb3 {[%clk 0:00:07.9]} 42... g5
{[%clk 0:00:17.5]} 43. Rc3 {[%clk 0:00:08.3]} 43... f6 {[%clk 0:00:17.9]} 44.
Rb3 {[%clk 0:00:08.7]} 44... Rc4 {[%clk 0:00:17.8]} 45. Ra3 {[%clk 0:00:08.9]}
45... Kg6 {[%clk 0:00:18.3]} 46. Rb3 {[%clk 0:00:09.3]} 46... h4+ {[%clk
0:00:18.9]} 47. Kf3 {[%clk 0:00:09.1]} 47... Rd4 {[%clk 0:00:19.8]} 48. Ra3
{[%clk 0:00:09.3]} 48... Rf4+ {[%clk 0:00:19.9]} 49. Ke3 {[%clk 0:00:09.7]}
49... Rb4 {[%clk 0:00:20.8]} 50. Kf3 {[%clk 0:00:09.8]} 50... Kf5 {[%clk
0:00:20.4]} 51. Ra5+ {[%clk 0:00:09.6]} 51... Kg6 {[%clk 0:00:21]} 52. Ra3
{[%clk 0:00:10.2]} 52... Rb5 {[%clk 0:00:21.7]} 53. Rc3 {[%clk 0:00:09.5]} 53...
Re5 {[%clk 0:00:22.1]} 54. Ra3 {[%clk 0:00:09.4]} 54... Kf5 {[%clk 0:00:22.7]}
55. Rb3 {[%clk 0:00:09.3]} 55... Re1 {[%clk 0:00:22.7]} 56. Rb5+ {[%clk
0:00:08.7]} 56... Re5 {[%clk 0:00:23.3]} 57. Rb3 {[%clk 0:00:08.8]} 57... Re1
{[%clk 0:00:23.7]} 58. Rb5+ {[%clk 0:00:08.9]} 58... Ke6 {[%clk 0:00:24.3]} 59.
Rb6+ {[%clk 0:00:09.1]} 59... Kf7 {[%clk 0:00:24.9]} 60. Rb7+ {[%clk 0:00:09.4]}
60... Kg6 {[%clk 0:00:25.6]} 61. Rb3 {[%clk 0:00:09.7]} 61... Rf1+ {[%clk
0:00:25.9]} 62. Ke2 {[%clk 0:00:10]} 62... Rh1 {[%clk 0:00:26.8]} 63. Kf3 {[%clk
0:00:09.8]} 63... Rf1+ {[%clk 0:00:26.4]} 64. Ke2 {[%clk 0:00:10.1]} 64... Rg1
{[%clk 0:00:27.1]} 65. Kf2 {[%clk 0:00:09.7]} 65... Ra1 {[%clk 0:00:27.2]} 66.
Kf3 {[%clk 0:00:10.1]} 66... Ra4 {[%clk 0:00:26.1]} 67. Rc3 {[%clk 0:00:10]}
67... Rd4 {[%clk 0:00:23.8]} 68. Rb3 {[%clk 0:00:10.1]} 68... Kf5 {[%clk
0:00:24.1]} 69. Rb5+ {[%clk 0:00:10.1]} 69... Ke6 {[%clk 0:00:24.8]} 70. Rb6+
{[%clk 0:00:10.4]} 70... Ke5 {[%clk 0:00:25.5]} 71. Rb5+ {[%clk 0:00:10.8]}
71... Rd5 {[%clk 0:00:26.2]} 72. Rb3 {[%clk 0:00:10.6]} 72... f5 {[%clk
0:00:26.2]} 73. Ra3 {[%clk 0:00:10]} 73... Rb5 {[%clk 0:00:26]} 74. Rc3 {[%clk
0:00:09.9]} 74... Kd4 {[%clk 0:00:22.8]} 75. Ra3 {[%clk 0:00:09.2]} 75... Rc5
{[%clk 0:00:21.7]} 76. Ra4+ {[%clk 0:00:09.2]} 76... Rc4 {[%clk 0:00:20.3]} 77.
Ra8 {[%clk 0:00:05]} 77... Rc3+ {[%clk 0:00:19.9]} 78. Kf2 {[%clk 0:00:05.5]}
78... Ke5 {[%clk 0:00:19]} 79. Ra5+ {[%clk 0:00:05.2]} 79... Ke4 {[%clk
0:00:18]} 80. Ra4+ {[%clk 0:00:05.5]} 80... Kd5 {[%clk 0:00:18.3]} 81. Ra5+
{[%clk 0:00:05.8]} 81... Rc5 {[%clk 0:00:18.4]} 82. Ra8 {[%clk 0:00:06.1]} 82...
Kd4 {[%clk 0:00:17.8]} 83. Ra4+ {[%clk 0:00:05.6]} 83... Ke5 {[%clk 0:00:17.7]}
84. Ra8 {[%clk 0:00:05.5]} 84... Rc4 {[%clk 0:00:16.3]} 85. Ra3 {[%clk
0:00:04.3]} 85... Kf4 {[%clk 0:00:11.8]} 86. Rf3+ {[%clk 0:00:04.2]} 86... Ke4
{[%clk 0:00:12.4]} 87. Re3+ {[%clk 0:00:04.6]} 87... Kd4 {[%clk 0:00:13.1]} 88.
Ra3 {[%clk 0:00:04.5]} 88... Rc2+ {[%clk 0:00:12.6]} 89. Kf1 {[%clk 0:00:03.6]}
89... Ke5 {[%clk 0:00:11.8]} 90. Rb3 {[%clk 0:00:02.4]} 90... Kf4 {[%clk
0:00:10.7]} 91. Rf3+ {[%clk 0:00:02.4]} 91... Ke4 {[%clk 0:00:10.9]} 92. Ra3
{[%clk 0:00:03.3]} 92... Rb2 {[%clk 0:00:08.8]} 93. Rc3 {[%clk 0:00:02.7]} 93...
Rb1+ {[%clk 0:00:09]} 94. Kf2 {[%clk 0:00:03]} 94... Rb2+ {[%clk 0:00:09.9]} 95.
Kf1 {[%clk 0:00:03.6]} 95... Kd4 {[%clk 0:00:10.8]} 96. Ra3 {[%clk 0:00:03.6]}
96... Ke5 {[%clk 0:00:11]} 97. Ra4 {[%clk 0:00:03.6]} 97... Kf6 {[%clk
0:00:10.6]} 98. Kg1 {[%clk 0:00:03.5]} 98... f4 {[%clk 0:00:10.6]} 99. Kf1
{[%clk 0:00:03.7]} 99... Kf5 {[%clk 0:00:10.6]} 100. Ra5+ {[%clk 0:00:03.9]}
100... Kg6 {[%clk 0:00:10.6]} 101. Ra6+ {[%clk 0:00:04.3]} 101... Kh5 {[%clk
0:00:11.1]} 102. Ra5 {[%clk 0:00:04.5]} 102... Rc2 {[%clk 0:00:09.4]} 103. Ra6
{[%clk 0:00:03.7]} 103... f3 {[%clk 0:00:09.2]} 104. gxf3 {[%clk 0:00:03.7]}
104... Rh2 {[%clk 0:00:09.9]} 105. Kg1 {[%clk 0:00:02.4]} 105... Rxh3 {[%clk
0:00:09.9]} 106. Kg2 {[%clk 0:00:02.6]} 106... Rg3+ {[%clk 0:00:10.3]} 107. Kf2
{[%clk 0:00:03.2]} 107... Rh3 {[%clk 0:00:08]} 108. Kg2 {[%clk 0:00:03.6]}
108... Rg3+ {[%clk 0:00:08.5]} 109. Kf2 {[%clk 0:00:04.2]} 109... g4 {[%clk
0:00:08.9]} 110. Ra5+ {[%clk 0:00:02]} 110... Kh6 {[%clk 0:00:08.7]} 111. fxg4
{[%clk 0:00:02.2]} 111... Rxg4 {[%clk 0:00:09.6]} 112. Ra6+ {[%clk 0:00:02.5]}
112... Kh5 {[%clk 0:00:09.7]} 113. Ra8 {[%clk 0:00:02.6]} 113... Rf4+ {[%clk
0:00:09.5]} 114. Kg2 {[%clk 0:00:02.8]} 114... Rf7 {[%clk 0:00:09.2]} 115. Kh3
{[%clk 0:00:02.9]} 115... Rf3+ {[%clk 0:00:09]} 116. Kg2 {[%clk 0:00:03.1]}
116... Rb3 {[%clk 0:00:09.9]} 117. Rh8+ {[%clk 0:00:03]} 117... Kg5 {[%clk
0:00:10.5]} 118. Rg8+ {[%clk 0:00:03.9]} 118... Kf5 {[%clk 0:00:11]} 119. Rh8
{[%clk 0:00:04.8]} 119... h3+ {[%clk 0:00:10.8]} 120. Rxh3 {[%clk 0:00:04.6]}
120... Rb2+ {[%clk 0:00:11.7]} 121. Kg3 {[%clk 0:00:05]} 121... Rb3+ {[%clk
0:00:11.7]} 122. Kh2 {[%clk 0:00:05.5]} 122... Rxh3+ {[%clk 0:00:12.6]} 123.
Kxh3 {[%clk 0:00:05.8]} 1/2-1/2

[Event "Early-Titled-Tuesday-Blitz-December-26-2023"]
[Site "Chess.com"]
[Date "2023.12.26"]
[Round "9"]
[White "Kostya0705"]
[Black "rachidhuilda"]
[Result "0-1"]
[WhiteElo "2540"]
[BlackElo "2364"]
[TimeControl "180+1"]
[EndTime "9:42:19 PST"]
[Termination "rachidhuilda won by resignation"]

1. e4 {[%clk 0:03:00.9]} 1... d5 {[%clk 0:02:52.9]} 2. exd5 {[%clk 0:02:58.9]}
2... Qxd5 {[%clk 0:02:51.3]} 3. d4 {[%clk 0:02:57.8]} 3... e5 {[%clk 0:02:50.8]}
4. dxe5 {[%clk 0:02:51.9]} 4... Qxd1+ {[%clk 0:02:50.6]} 5. Kxd1 {[%clk
0:02:51.7]} 5... Nc6 {[%clk 0:02:51.2]} 6. f4 {[%clk 0:02:51]} 6... Bg4+ {[%clk
0:02:50.9]} 7. Be2 {[%clk 0:02:50.5]} 7... O-O-O+ {[%clk 0:02:51.3]} 8. Bd2
{[%clk 0:02:49.9]} 8... Nh6 {[%clk 0:02:51.2]} 9. h3 {[%clk 0:02:49]} 9... Be6
{[%clk 0:02:50.3]} 10. Nc3 {[%clk 0:02:46]} 10... Nf5 {[%clk 0:02:48.3]} 11. g4
{[%clk 0:02:44.2]} 11... Ng3 {[%clk 0:02:27.3]} 12. Rh2 {[%clk 0:02:40.3]} 12...
Nxe2 {[%clk 0:02:25.1]} 13. Ngxe2 {[%clk 0:02:41.2]} 13... g5 {[%clk 0:02:11.4]}
14. f5 {[%clk 0:02:38.6]} 14... Bc4 {[%clk 0:02:11.3]} 15. b3 {[%clk 0:02:32.4]}
15... Ba6 {[%clk 0:02:02.9]} 16. Kc1 {[%clk 0:02:30]} 16... h6 {[%clk
0:01:42.8]} 17. h4 {[%clk 0:02:29.2]} 17... Nxe5 {[%clk 0:01:40.9]} 18. Ne4
{[%clk 0:02:10.5]} 18... Ba3+ {[%clk 0:01:29.6]} 19. Kd1 {[%clk 0:02:06.3]}
19... Nxg4 {[%clk 0:01:29.5]} 20. Rh3 {[%clk 0:01:59.8]} 20... Rhe8 {[%clk
0:01:18]} 21. N2g3 {[%clk 0:01:55.2]} 21... Ne3+ {[%clk 0:00:57.7]} 0-1

[Event "Early-Titled-Tuesday-Blitz-December-26-2023"]
[Site "Chess.com"]
[Date "2023.12.26"]
[Round "9"]
[White "ploxoi"]
[Black "BardArtem"]
[Result "0-1"]
[WhiteElo "2497"]
[BlackElo "2686"]
[TimeControl "180+1"]
[EndTime "9:42:33 PST"]
[Termination "BardArtem won by resignation"]

1. d4 {[%clk 0:02:56.9]} 1... d5 {[%clk 0:02:58.3]} 2. c4 {[%clk 0:02:57.1]}
2... c6 {[%clk 0:02:58.8]} 3. Nf3 {[%clk 0:02:57.5]} 3... Nf6 {[%clk 0:02:59.2]}
4. e3 {[%clk 0:02:57.9]} 4... Bf5 {[%clk 0:02:59.1]} 5. Nc3 {[%clk 0:02:57.9]}
5... e6 {[%clk 0:02:57.4]} 6. Nh4 {[%clk 0:02:58.2]} 6... Be4 {[%clk 0:02:57.4]}
7. f3 {[%clk 0:02:57.2]} 7... Bg6 {[%clk 0:02:57.8]} 8. Be2 {[%clk 0:02:53.9]}
8... Be7 {[%clk 0:02:57]} 9. b3 {[%clk 0:02:51.4]} 9... Ne4 {[%clk 0:02:51.6]}
10. fxe4 {[%clk 0:02:51.7]} 10... Bxh4+ {[%clk 0:02:51.4]} 11. g3 {[%clk
0:02:52.4]} 11... Be7 {[%clk 0:02:49]} 12. e5 {[%clk 0:02:48.6]} 12... h5 {[%clk
0:02:43.9]} 13. h4 {[%clk 0:02:42.5]} 13... Nd7 {[%clk 0:02:33.7]} 14. O-O
{[%clk 0:02:42.5]} 14... Nb6 {[%clk 0:02:14]} 15. a4 {[%clk 0:02:38.3]} 15... a5
{[%clk 0:02:12.2]} 16. Ba3 {[%clk 0:02:28.1]} 16... Bxa3 {[%clk 0:02:06.8]} 17.
Rxa3 {[%clk 0:02:29]} 17... f6 {[%clk 0:01:59.6]} 18. exf6 {[%clk 0:02:25.6]}
18... Qd6 {[%clk 0:01:58.8]} 19. c5 {[%clk 0:02:15]} 19... Qxg3+ {[%clk
0:01:58.1]} 20. Kh1 {[%clk 0:02:15.6]} 20... gxf6 {[%clk 0:01:43.6]} 21. Qe1
{[%clk 0:01:54.1]} 21... Qh3+ {[%clk 0:01:38.2]} 22. Kg1 {[%clk 0:01:53]} 22...
Rg8 {[%clk 0:01:34]} 23. Bg4 {[%clk 0:01:27]} 23... Qxg4+ {[%clk 0:01:28.6]} 24.
Kh2 {[%clk 0:01:26.7]} 24... Bf5 {[%clk 0:01:24.6]} 0-1

[Event "Early-Titled-Tuesday-Blitz-December-26-2023"]
[Site "Chess.com"]
[Date "2023.12.26"]
[Round "9"]
[White "Ajedrez_con_German"]
[Black "Aygehovit1992"]
[Result "0-1"]
[WhiteElo "2593"]
[BlackElo "2746"]
[TimeControl "180+1"]
[EndTime "9:42:34 PST"]
[Termination "Aygehovit1992 won by resignation"]

1. Nf3 {[%clk 0:02:51.4]} 1... Nf6 {[%clk 0:02:59.9]} 2. g3 {[%clk 0:02:50.2]}
2... g6 {[%clk 0:03:00.5]} 3. b3 {[%clk 0:02:50.3]} 3... Bg7 {[%clk 0:03:00.8]}
4. Bb2 {[%clk 0:02:51.2]} 4... d6 {[%clk 0:03:01.2]} 5. d4 {[%clk 0:02:50.9]}
5... b5 {[%clk 0:03:01.4]} 6. Bg2 {[%clk 0:02:50.8]} 6... Bb7 {[%clk 0:03:02]}
7. O-O {[%clk 0:02:50.8]} 7... O-O {[%clk 0:03:01.3]} 8. e3 {[%clk 0:02:44.8]}
8... Nbd7 {[%clk 0:02:59.7]} 9. Nbd2 {[%clk 0:02:44.5]} 9... c5 {[%clk
0:02:54.7]} 10. c4 {[%clk 0:02:42.8]} 10... bxc4 {[%clk 0:02:51.9]} 11. Nxc4
{[%clk 0:02:42.7]} 11... a5 {[%clk 0:02:43.9]} 12. dxc5 {[%clk 0:02:36.9]} 12...
Nxc5 {[%clk 0:02:43.6]} 13. Nd4 {[%clk 0:02:34.4]} 13... Bxg2 {[%clk 0:02:42.1]}
14. Kxg2 {[%clk 0:02:34.4]} 14... Qd7 {[%clk 0:02:28.3]} 15. a4 {[%clk
0:02:21.1]} 15... Qb7+ {[%clk 0:02:15.4]} 16. Qf3 {[%clk 0:02:20.6]} 16... Qxf3+
{[%clk 0:02:15.5]} 17. Kxf3 {[%clk 0:02:20.5]} 17... Rfb8 {[%clk 0:01:59.9]} 18.
Ra3 {[%clk 0:02:09.6]} 18... Nfe4 {[%clk 0:01:41.8]} 19. Rc1 {[%clk 0:01:50]}
19... d5 {[%clk 0:01:37.1]} 20. Nc6 {[%clk 0:01:37.2]} 20... dxc4 {[%clk
0:01:34.9]} 21. Bxg7 {[%clk 0:01:36.6]} 21... Kxg7 {[%clk 0:01:33.5]} 22. Nxb8
{[%clk 0:01:35.3]} 22... Rxb8 {[%clk 0:01:34]} 23. bxc4 {[%clk 0:01:31.8]} 23...
Rb2 {[%clk 0:01:32.5]} 0-1

[Event "Early-Titled-Tuesday-Blitz-December-26-2023"]
[Site "Chess.com"]
[Date "2023.12.26"]
[Round "9"]
[White "PabloZarnicki"]
[Black "Eternauta2400"]
[Result "0-1"]
[WhiteElo "2648"]
[BlackElo "2814"]
[TimeControl "180+1"]
[EndTime "9:42:46 PST"]
[Termination "Eternauta2400 won by resignation"]

1. e4 {[%clk 0:03:00.9]} 1... c6 {[%clk 0:02:58.9]} 2. d4 {[%clk 0:02:57.7]}
2... d5 {[%clk 0:02:59.8]} 3. Nc3 {[%clk 0:02:55.4]} 3... dxe4 {[%clk
0:02:58.6]} 4. Nxe4 {[%clk 0:02:56.1]} 4... Nf6 {[%clk 0:02:59.5]} 5. Nxf6+
{[%clk 0:02:56]} 5... exf6 {[%clk 0:03:00.4]} 6. Bc4 {[%clk 0:02:56.3]} 6... Bd6
{[%clk 0:03:01.3]} 7. Qe2+ {[%clk 0:02:56.5]} 7... Be7 {[%clk 0:03:01.1]} 8. Nf3
{[%clk 0:02:55.6]} 8... O-O {[%clk 0:03:01.3]} 9. O-O {[%clk 0:02:46.7]} 9...
Bd6 {[%clk 0:03:01]} 10. c3 {[%clk 0:02:46.5]} 10... Re8 {[%clk 0:03:00.3]} 11.
Be3 {[%clk 0:02:45.3]} 11... Nd7 {[%clk 0:02:59.6]} 12. Rfe1 {[%clk 0:02:44.1]}
12... Nf8 {[%clk 0:02:59.2]} 13. h3 {[%clk 0:02:41.6]} 13... Be6 {[%clk
0:02:55.8]} 14. Nd2 {[%clk 0:02:40.3]} 14... Qd7 {[%clk 0:02:54.8]} 15. Bb3
{[%clk 0:02:37.5]} 15... Ng6 {[%clk 0:02:54.2]} 16. Rad1 {[%clk 0:02:26.3]}
16... Bxh3 {[%clk 0:02:47.5]} 17. gxh3 {[%clk 0:02:16.1]} 17... Qxh3 {[%clk
0:02:48.4]} 18. Qf3 {[%clk 0:01:22.3]} 18... Qh2+ {[%clk 0:02:29.2]} 19. Kf1
{[%clk 0:01:22.3]} 19... Nh4 {[%clk 0:02:29.9]} 20. Qg4 {[%clk 0:01:22.7]} 20...
f5 {[%clk 0:02:16.2]} 21. Qh5 {[%clk 0:01:05.8]} 21... g6 {[%clk 0:02:06.7]} 22.
Bxf7+ {[%clk 0:01:04.9]} 22... Kxf7 {[%clk 0:01:58.4]} 23. Qxh7+ {[%clk
0:01:04.4]} 23... Kf6 {[%clk 0:01:59.1]} 24. Ke2 {[%clk 0:00:43.6]} 24... Rxe3+
{[%clk 0:01:57.8]} 25. Kxe3 {[%clk 0:00:41.2]} 25... Ng2+ {[%clk 0:01:57.9]} 26.
Kd3 {[%clk 0:00:37.8]} 26... Nxe1+ {[%clk 0:01:58]} 27. Rxe1 {[%clk 0:00:37.5]}
27... Qxh7 {[%clk 0:01:58.9]} 0-1